bitfinex-derivatives/quotes_ETHF0:USTF0_20250115
["timestamp","ask_amount","ask_price","bid_price","bid_amount"]
[1736919332139,6.43524443,3230.1,3230.0,40.8]
[1736919332438,3.22744443,3230.1,3230.0,41.10974]
[1736919332631,3.2078,3230.5,3230.4,0.3097]
[1736919332938,6.77575407,3230.5,3230.4,0.3097]
[1736919334937,3.56795407,3230.5,3230.4,0.3097]
[1736919335139,6.77575407,3230.5,3230.4,0.3097]
[1736919335343,3.2078,3230.5,3230.4,0.3097]
[1736919335538,6.50640655,3230.5,3230.4,0.3097]
[1736919335843,3.29860655,3230.5,3230.4,0.3097]
[1736919336242,3.37912021,3230.8,3230.6,0.30968]
[1736919336441,3.98415,3230.9,3230.6,0.30968]
[1736919336742,3.37912021,3230.8,3230.6,0.30968]
[1736919337939,3.37912021,3230.8,3230.3,3.2078]
[1736919337940,3.37912021,3230.8,3230.7,0.30967]
[1736919340046,2.997,3231.0,3230.9,0.30965]
[1736919340850,6.22045609,3231.0,3230.9,40.8]
[1736919341237,7.51939609,3231.0,3230.9,40.8]
[1736919343343,7.51939609,3231.0,3230.7,0.30967]
[1736919343748,7.51939609,3231.0,3230.7,41.10967]
[1736919344752,7.20975609,3231.0,3230.8,0.30966]
[1736919345640,7.20975609,3231.0,3230.7,40.8]
[1736919345843,7.51940609,3231.0,3230.7,41.10967]
[1736919346048,7.51940609,3231.0,3230.7,41.10966]
[1736919346451,0.30965,3230.9,3230.7,40.8]
[1736919346957,3.48357005,3230.8,3230.7,40.8]
[1736919348949,3.79323005,3230.8,3230.7,40.8]
[1736919349151,2.7425721,3230.8,3230.7,40.8]
[1736919349347,0.30968,3230.6,3230.4,0.3097]
[1736919349548,0.30971,3230.3,3230.2,3.2078]
[1736919349749,0.30971,3230.3,3230.2,44.0078]
[1736919349949,0.30971,3230.3,3230.2,40.8]
[1736919349950,3.70591047,3230.3,3230.2,40.8]
[1736919350152,6.39320047,3230.3,3229.8,3.2078]
[1736919350453,0.30973,3230.1,3229.8,3.51755]
[1736919350648,0.30973,3230.1,3229.9,40.8]
[1736919350844,3.39620047,3230.0,3229.9,40.8]
[1736919351250,3.70594047,3230.0,3229.9,40.8]
[1736919351854,3.39620047,3230.0,3229.9,40.8]
[1736919352059,3.39620047,3230.0,3229.9,41.10975]
[1736919354753,3.70594047,3230.0,3229.9,40.8]
[1736919354954,3.39620047,3230.0,3229.9,41.10975]
[1736919361350,3.39620047,3230.0,3229.9,40.8]
[1736919361749,3.39620047,3230.0,3229.9,41.10975]
[1736919366664,3.46043306,3230.1,3230.0,0.30974]
[1736919366861,0.9914,3230.2,3230.1,0.30973]
[1736919367167,4.25079735,3230.2,3230.1,0.30973]
[1736919382478,3.75129735,3230.2,3230.1,0.30973]
[1736919384385,3.25939735,3230.2,3230.1,0.30973]
[1736919384586,3.25939735,3230.2,3230.1,0.80413]
[1736919385287,3.669,3230.5,3230.1,0.80413]
[1736919385288,3.46615818,3230.4,3230.1,0.80413]
[1736919385491,2.4329121,3230.2,3229.4,3.2078]
[1736919385682,2.4329121,3229.8,3229.7,0.30977]
[1736919386086,5.70264716,3229.8,3229.7,0.30977]
[1736919388491,3.26973506,3229.8,3229.7,0.30977]
[1736919390591,3.3260115,3229.9,3229.4,44.0078]
[1736919390780,0.499,3229.7,3229.6,0.30978]
[1736919391091,3.99983457,3229.7,3229.4,44.0078]
[1736919391290,0.4952,3229.6,3229.5,0.30978]
[1736919391591,3.99603457,3229.6,3229.5,0.30978]
[1736919392086,3.99603457,3229.6,3229.4,40.8]
[1736919392087,7.20383457,3229.6,3229.4,40.8]
[1736919392394,3.2101921,3229.5,3229.4,40.8]
[1736919392795,6.4804962,3229.5,3229.4,40.8]
[1736919393289,3.7378041,3229.5,3229.4,41.10979]
[1736919395496,6.9456041,3229.5,3229.4,41.10979]
[1736919396796,3.7378041,3229.5,3229.4,41.10979]
[1736919397893,6.9456041,3229.5,3229.4,41.10979]
[1736919398896,7.2553841,3229.5,3229.4,40.8]
[1736919399401,9.6882962,3229.5,3229.4,40.8]
[1736919399703,0.30979,3229.4,3229.1,0.30981]
[1736919400001,0.30981,3229.3,3229.2,40.8]
[1736919400299,0.79291,3229.3,3229.2,40.8]
[1736919400696,4.02387763,3229.3,3229.2,40.8]
[1736919401202,3.71406763,3229.3,3229.2,40.8]
[1736919401403,3.71406763,3229.3,3229.2,41.10981]
[1736919401606,4.02386763,3229.3,3229.2,40.8]
[1736919402699,3.71406763,3229.3,3229.2,41.10981]
[1736919402903,3.23096763,3229.3,3229.2,41.10981]
[1736919404305,3.54077763,3229.3,3229.2,40.8]
[1736919404600,3.23096763,3229.3,3229.2,41.10982]
[1736919406601,3.2078,3229.9,3229.2,41.10982]
[1736919406894,3.24523115,3229.8,3229.5,3.2078]
[1736919407090,3.24523115,3229.8,3229.6,0.4667]
[1736919407297,3.36982236,3230.0,3229.6,0.4667]
[1736919407490,3.36982236,3230.0,3229.9,0.30975]
[1736919407702,6.6949,3230.3,3230.2,0.30972]
[1736919407997,6.69660303,3230.3,3230.2,0.30972]
[1736919408606,3.48880303,3230.3,3230.2,0.30972]
[1736919408802,3.51746,3230.8,3230.6,0.30968]
[1736919409203,3.29392412,3230.7,3230.6,41.10968]
[1736919409803,0.30962,3231.3,3230.6,44.31748]
[1736919410013,0.30962,3231.3,3230.7,0.936]
[1736919410299,5.6407121,3231.4,3231.1,0.30963]
[1736919410300,3.37985701,3231.2,3231.1,0.30963]
[1736919410801,3.42261025,3231.3,3231.2,0.30962]
[1736919411001,5.9503221,3231.4,3231.2,0.30962]
[1736919411207,3.48255802,3231.3,3231.1,0.30963]
[1736919411802,3.48255802,3231.3,3230.7,1.4314]
[1736919412000,3.48255802,3231.3,3231.1,0.30963]
[1736919413109,3.48255802,3231.3,3230.7,1.4314]
[1736919413311,3.48255802,3231.3,3231.2,0.30962]
[1736919422707,3.79216802,3231.3,3231.1,0.30963]
[1736919423419,3.48255802,3231.3,3231.2,0.30962]
[1736919425319,3.48255802,3231.3,3230.7,0.936]
[1736919425517,3.79217802,3231.3,3231.1,0.30963]
[1736919426017,3.48255802,3231.3,3230.7,0.936]
[1736919426320,0.30963,3231.1,3230.9,0.30964]
[1736919426618,0.30963,3231.1,3231.0,0.30964]
[1736919426816,0.30963,3231.2,3231.0,0.30964]
[1736919427017,3.46071634,3231.1,3231.0,0.30964]
[1736919427214,3.49121525,3231.3,3230.7,0.4668]
[1736919427420,0.30965,3231.0,3230.8,0.30966]
[1736919427616,0.9828,3230.9,3230.8,0.30966]
[1736919427819,4.47401525,3230.9,3230.8,0.30966]
[1736919428124,4.47401525,3230.9,3230.6,44.0078]
[1736919428320,4.78366525,3230.9,3230.7,0.30967]
[1736919428616,4.47401525,3230.9,3230.8,0.30966]
[1736919431422,3.49121525,3230.9,3230.8,0.30966]
[1736919431623,3.49121525,3230.9,3230.8,1.25096]
[1736919431921,3.80378159,3231.3,3231.2,0.30962]
[1736919432417,0.4693,3231.3,3231.2,0.30962]
[1736919432616,3.82690706,3231.3,3231.2,0.30962]
[1736919434317,3.35760706,3231.3,3231.2,0.30962]
[1736919434630,4.1559,3231.8,3231.7,0.30957]
[1736919434818,3.7023,3231.8,3231.7,41.10957]
[1736919435120,4.07828834,3231.8,3231.7,41.10957]
[1736919442627,4.54738834,3231.8,3231.7,41.10957]
[1736919443525,4.54738834,3231.8,3231.7,40.8]
[1736919443830,0.30958,3231.7,3231.5,0.30959]
[1736919444023,0.4802,3231.6,3231.5,0.30959]
[1736919444327,3.74962689,3231.6,3231.5,41.10959]
[1736919449932,3.26942689,3231.6,3231.5,41.10959]
[1736919450733,3.29348266,3231.7,3231.6,0.30958]
[1736919451232,1.27317,3231.8,3231.6,0.30958]
[1736919451432,3.44479911,3231.7,3231.6,0.30958]
[1736919453825,3.44479911,3231.7,3231.6,1.24098]
[1736919454228,3.3404867,3231.8,3231.7,0.30957]
[1736919454530,3.3404867,3231.9,3231.8,0.30956]
[1736919454735,0.30955,3232.0,3231.6,0.9314]
[1736919455032,4.6241,3232.1,3231.6,0.9314]
[1736919455235,0.30956,3231.9,3231.8,0.30956]
[1736919455437,3.80392554,3231.9,3231.8,0.30956]
[1736919455627,0.30956,3231.9,3231.8,0.30956]
[1736919455827,3.80392554,3231.9,3231.8,0.30956]
[1736919459039,0.9268,3232.1,3231.7,2.4329121]
[1736919459244,0.4661,3232.1,3232.0,0.30955]
[1736919459534,3.93554875,3232.1,3232.0,0.30955]
[1736919459737,6.36846085,3232.1,3231.6,0.9314]
[1736919459941,0.30955,3232.0,3231.9,0.30955]
[1736919460438,3.89809704,3232.0,3231.9,0.30955]
[1736919461133,3.58854704,3232.0,3231.9,0.30955]
[1736919464652,2.997,3232.2,3231.6,0.9314]
[1736919464850,2.997,3232.2,3232.1,0.30954]
[1736919465149,6.45766868,3232.2,3232.1,0.30954]
[1736919465544,6.45766868,3232.2,3232.1,41.10954]
[1736919467148,3.46066868,3232.2,3232.1,41.10954]
[1736919468945,3.46066868,3232.2,3232.1,0.30954]
[1736919470150,3.35929735,3232.3,3231.8,0.30956]
[1736919470453,0.30956,3231.9,3231.8,0.30957]
[1736919470758,3.61179312,3231.9,3231.8,0.30957]
[1736919471349,0.30958,3231.7,3231.6,40.8]
[1736919471749,3.52817569,3231.7,3231.6,40.8]
[1736919472243,3.52817569,3231.7,3231.6,41.10959]
[1736919472244,3.21859569,3231.7,3231.6,41.10959]
[1736919478151,2.997,3232.0,3231.6,40.8]
[1736919478357,2.997,3232.0,3231.9,0.30956]
[1736919479650,2.2472,3232.0,3231.9,5.30956]
[1736919480059,0.7481,3232.0,3231.9,5.30956]
[1736919480253,1.4051,3233.1,3233.0,0.30946]
[1736919480661,4.88800953,3233.1,3233.0,0.30946]
[1736919481365,4.88800953,3233.1,3233.0,41.10946]
[1736919482566,4.41470953,3233.1,3233.0,41.10946]
[1736919482760,3.93710953,3233.1,3233.0,41.10946]
[1736919484157,4.24655953,3233.1,3233.0,40.8]
[1736919484356,4.24655953,3233.1,3232.3,1.234]
[1736919484357,0.30947,3232.9,3232.3,1.234]
[1736919484558,0.9515,3232.8,3232.7,0.30948]
[1736919484763,4.21075499,3232.8,3232.7,41.10948]
[1736919489967,4.21075499,3232.8,3232.7,40.8]
[1736919490165,4.21075499,3232.8,3232.7,41.10949]
[1736919492469,4.52023499,3232.8,3232.7,40.8]
[1736919494865,7.72803499,3232.8,3232.7,40.8]
[1736919496465,7.41855499,3232.8,3232.3,0.30953]
[1736919496666,3.2078,3232.4,3232.3,0.30953]
[1736919496867,3.51732,3232.4,3232.3,0.30953]
[1736919497174,7.25170035,3232.4,3232.3,41.10953]
[1736919497674,7.25170035,3232.4,3232.3,40.8]
[1736919502073,6.94218035,3232.4,3232.3,41.10953]
[1736919505269,3.73438035,3232.4,3232.3,41.10953]
[1736919514678,6.94218035,3232.4,3232.3,40.8]
[1736919514875,7.25170035,3232.4,3232.3,40.8]
[1736919520585,7.25170035,3232.4,3232.3,41.10953]
[1736919520976,6.94218035,3232.4,3232.3,41.10953]
[1736919524788,3.73438035,3232.4,3232.3,41.10953]
[1736919536402,4.04390035,3232.4,3232.3,41.10953]
[1736919536603,3.73438035,3232.4,3232.3,41.10953]
[1736919538306,4.88427298,3232.4,3232.3,41.10953]
[1736919542608,4.88427298,3232.4,3232.3,0.30953]
[1736919542814,0.30955,3232.2,3232.0,0.30956]
[1736919543006,4.82129263,3232.1,3232.0,0.30956]
[1736919543202,8.60955569,3232.1,3232.0,40.8]
[1736919544116,9.44989832,3232.1,3231.7,0.30958]
[1736919544313,1.45947263,3231.8,3231.7,0.30958]
[1736919544509,1.45947263,3231.8,3231.1,1.14989263]
[1736919544709,0.9387,3231.7,3231.6,0.3096]
[1736919545106,7.89695228,3231.7,3231.5,0.3096]
[1736919545415,0.30962,3231.4,3231.3,0.30962]
[1736919545609,0.4636,3231.6,3231.2,40.8]
[1736919545813,3.2078,3231.3,3231.2,41.10964]
[1736919546014,4.35769263,3231.3,3231.2,41.10964]
[1736919546212,7.80327487,3231.3,3231.2,41.10964]
[1736919547319,6.65338224,3231.3,3231.2,41.10964]
[1736919553825,3.44558224,3231.3,3231.2,41.10964]
[1736919554325,3.40017609,3231.5,3231.2,40.8]
[1736919554523,0.4636,3231.6,3231.5,0.30961]
[1736919554824,3.71933369,3231.6,3231.5,0.30961]
[1736919590553,3.25573369,3231.6,3231.5,0.30961]
[1736919590851,3.2078,3231.9,3231.8,0.30958]
[1736919591057,3.2078,3231.9,3231.8,42.26003247]
[1736919591357,6.66465705,3231.9,3231.8,42.26003247]
[1736919592554,3.45685705,3231.9,3231.8,42.26003247]
[1736919592950,3.24240394,3232.1,3231.9,0.30957]
[1736919593152,3.24240394,3232.1,3232.0,0.30956]
[1736919593357,2.61135247,3232.2,3232.1,0.30955]
[1736919593758,5.92689725,3232.2,3232.1,0.30955]
[1736919594255,6.23643725,3232.2,3232.1,0.30955]
[1736919598660,5.92689725,3232.2,3231.8,40.8]
[1736919598857,1.46002247,3231.9,3231.8,40.8]
[1736919599258,4.84940388,3231.9,3231.8,40.8]
[1736919599855,4.53983388,3231.9,3231.8,40.8]
[1736919600059,4.84938388,3231.9,3231.8,41.10956]
[1736919600658,4.53983388,3231.9,3231.8,41.10956]
[1736919601669,4.84938388,3231.9,3231.8,41.10956]
[1736919602361,4.53983388,3231.9,3231.8,41.10956]
[1736919602665,3.38938141,3231.9,3231.8,41.10956]
[1736919603053,3.29696318,3232.0,3231.9,0.30955]
[1736919603558,1.15045247,3232.1,3231.8,40.8]
[1736919603764,1.15045247,3232.1,3232.0,0.30954]
[1736919604163,4.42104627,3232.1,3232.0,0.30954]
[1736919612370,4.42104627,3232.1,3231.8,40.8]
[1736919612574,1.46000247,3231.9,3231.8,40.8]
[1736919613074,5.00102003,3231.9,3231.8,40.8]
[1736919614375,3.85056756,3231.9,3231.8,40.8]
[1736919618377,7.05836756,3231.9,3231.8,40.8]
[1736919620876,8.29136756,3231.9,3231.8,40.8]
[1736919623782,0.30959,3231.6,3231.4,0.3096]
[1736919623980,2.39014247,3231.5,3231.3,0.3096]
[1736919624179,1.61205247,3231.4,3231.3,0.3096]
[1736919624477,5.12842234,3231.4,3231.3,0.3096]
[1736919624783,5.12842234,3231.4,3231.3,41.1096]
[1736919627377,5.12842234,3231.4,3231.3,40.8]
[1736919627581,5.43802234,3231.4,3231.3,40.8]
[1736919627779,8.43502234,3231.4,3231.3,40.8]
[1736919629385,6.51336987,3231.4,3231.3,41.10961]
[1736919629782,7.97342234,3231.4,3231.3,41.10961]
[1736919629979,7.66382234,3231.4,3231.3,41.10961]
[1736919632586,7.97342234,3231.4,3231.3,40.8]
[1736919633481,0.30965,3230.9,3230.8,3.51745]
[1736919633682,1.15045247,3230.9,3230.8,3.51745]
[1736919633887,4.56312966,3230.9,3230.8,3.51745]
[1736919634188,4.56312966,3230.9,3230.8,44.31745]
[1736919634792,5.03032966,3230.9,3230.8,44.31745]
[1736919639000,5.03032966,3230.9,3230.8,41.10965]
[1736919646506,5.33997966,3230.9,3230.8,40.8]
[1736919646708,4.18952719,3230.9,3230.8,40.8]
[1736919658613,5.42252719,3230.9,3230.8,40.8]
[1736919658812,5.11287719,3230.9,3230.0,0.1769]
[1736919659014,1.15045247,3230.3,3230.2,0.30971]
[1736919659412,5.64521726,3230.3,3230.2,41.10971]
[1736919660017,6.43141726,3230.3,3230.2,40.8]
[1736919660723,4.49476479,3230.3,3230.2,41.10971]
[1736919661028,3.53136479,3230.3,3230.2,41.10971]
[1736919661420,3.43747803,3230.4,3230.3,0.3097]
[1736919661722,1.46013247,3230.5,3230.2,40.8]
[1736919661923,3.3078081,3230.4,3230.3,0.30969]
[1736919662630,3.3078081,3230.4,3230.2,40.8]
[1736919662827,1.46015247,3230.3,3230.2,41.10971]
[1736919663123,2.93245247,3230.3,3230.2,41.10971]
[1736919663328,6.31276885,3230.3,3230.2,41.10971]
[1736919663919,6.31276885,3230.3,3230.2,40.8]
[1736919665327,0.30973,3230.0,3229.9,3.51754]
[1736919665730,0.30973,3230.0,3229.9,44.31754]
[1736919665919,0.30973,3230.0,3229.9,44.0078]
[1736919666227,3.66065487,3230.0,3229.9,40.8]
[1736919671429,3.35092487,3230.0,3229.9,41.10974]
[1736919672530,4.81110734,3230.0,3229.9,40.8]
[1736919672733,3.66065487,3230.0,3229.9,40.8]
[1736919673739,4.81110734,3230.0,3229.9,40.8]
[1736919678331,7.80810734,3230.0,3229.9,40.8]
[1736919678537,8.95855981,3230.0,3229.9,40.8]
[1736919680537,0.30981,3229.3,3229.0,3.51762]
[1736919680737,1.46026247,3229.2,3229.0,3.51763]
[1736919680929,5.70600063,3229.2,3229.1,40.8]
[1736919681134,2.40456247,3229.2,3229.1,40.8]
[1736919681536,5.7661939,3229.2,3229.1,40.8]
[1736919682842,5.7661939,3229.2,3229.1,41.10982]
[1736919683044,3.36163143,3229.2,3229.1,41.10982]
[1736919683248,3.36163143,3229.2,3229.1,42.26027247]
[1736919685139,1.46026247,3229.2,3229.1,41.10982]
[1736919685641,5.96460851,3229.2,3229.1,41.10982]
[1736919687938,5.65479851,3229.2,3229.1,41.10982]
[1736919688639,5.65479851,3229.2,3229.1,42.26027247]
[1736919688640,3.57064604,3229.2,3229.1,42.26027247]
[1736919688845,3.57064604,3229.2,3229.1,42.43747247]
[1736919689038,3.24359907,3229.5,3229.4,0.30978]
[1736919689539,1.46022247,3229.6,3229.4,0.30978]
[1736919689748,3.24359907,3229.5,3229.4,41.10978]
[1736919690247,3.55337907,3229.5,3229.4,41.10978]
[1736919691845,3.24359907,3229.5,3229.4,41.10978]
[1736919692345,3.74329514,3229.6,3229.4,41.10978]
[1736919692545,0.30977,3229.6,3229.4,41.10978]
[1736919692748,3.74330514,3229.5,3229.4,41.10978]
[1736919693042,0.30978,3229.5,3229.4,40.8]
[1736919693434,3.53914939,3229.5,3229.4,40.8]
[1736919700853,0.30981,3229.2,3229.1,0.30981]
[1736919701355,3.8523294,3229.2,3229.1,0.30981]
[1736919702851,3.8523294,3229.2,3229.1,41.10981]
[1736919703751,3.5425194,3229.2,3229.1,41.10981]
[1736919706162,0.30979,3229.4,3229.1,40.8]
[1736919706457,4.48390988,3229.3,3229.2,0.3098]
[1736919706754,4.96460988,3229.3,3229.2,0.3098]
[1736919708252,5.27440988,3229.3,3229.2,0.30981]
[1736919709361,4.96460988,3229.3,3229.2,0.30981]
[1736919710363,5.27440988,3229.3,3229.1,40.8]
[1736919710560,5.27440988,3229.3,3229.2,0.30981]
[1736919710953,4.96460988,3229.3,3229.2,0.30981]
[1736919713461,6.11680741,3229.3,3229.2,0.30981]
[1736919714060,6.11680741,3229.3,3229.1,40.8]
[1736919714254,0.30981,3229.2,3229.1,41.10982]
[1736919714449,0.30981,3229.2,3229.1,40.8]
[1736919714759,3.55919926,3229.2,3229.1,40.8]
[1736919715649,3.24938926,3229.2,3229.1,41.10982]
[1736919716357,3.55919926,3229.2,3229.1,40.8]
[1736919716760,3.24938926,3229.2,3229.1,41.10982]
[1736919717464,4.40158679,3229.2,3229.1,41.10982]
[1736919719466,4.71139679,3229.2,3229.1,41.10982]
[1736919721056,4.71139679,3229.2,3229.1,40.8]
[1736919721461,4.71139679,3229.2,3229.1,41.10982]
[1736919729766,4.40158679,3229.2,3229.1,41.10982]
[1736919730073,3.24938926,3229.2,3229.1,41.10982]
[1736919730664,3.24938926,3229.2,3229.1,44.31762]
[1736919730974,3.51757,3229.6,3229.5,0.30978]
[1736919730975,3.2078,3229.6,3229.5,0.30978]
[1736919731269,1.15219753,3229.8,3229.7,0.30976]
[1736919731768,4.62408717,3229.8,3229.1,44.0078]
[1736919731969,1.15219753,3229.5,3229.1,44.0078]
[1736919732170,1.15219753,3229.5,3229.4,0.30979]
[1736919732670,4.64305492,3229.5,3229.4,0.30979]
[1736919733165,5.58295492,3229.5,3229.4,0.30979]
[1736919733967,3.49085739,3229.5,3229.4,0.30979]
[1736919734172,3.2078,3230.0,3229.4,0.30979]
[1736919734469,3.2078,3230.0,3229.9,0.30974]
[1736919734864,7.94311021,3230.0,3229.9,41.10974]
[1736919736771,4.73531021,3230.0,3229.9,41.10974]
[1736919736971,3.58311268,3230.0,3229.9,41.10974]
[1736919738371,3.58311268,3230.0,3229.9,42.26193753]
[1736919739664,3.58311268,3230.0,3229.9,41.10974]
[1736919751978,3.58311268,3230.0,3229.9,41.28714]
[1736919752178,3.58311268,3230.0,3229.9,42.26193753]
[1736919756078,1.15219753,3230.0,3229.9,0.30974]
[1736919756485,5.09654549,3230.0,3229.9,0.30974]
[1736919756677,5.09654549,3230.0,3229.9,41.10974]
[1736919756877,3.94434796,3230.0,3229.9,41.10974]
[1736919763187,3.94434796,3230.0,3229.9,44.31754]
[1736919767591,0.4616,3230.0,3229.9,44.31754]
[1736919770700,1.62609753,3230.2,3230.1,0.30972]
[1736919783310,0.4739,3230.2,3230.1,0.30972]
[1736919784619,0.4561,3230.3,3230.1,0.1774]
[1736919784813,0.4561,3230.3,3230.2,0.30971]
[1736919785214,4.00872877,3230.3,3230.2,0.30971]
[1736919788707,4.00872877,3230.3,3230.2,4.66970753]
[1736919788916,0.484,3230.6,3230.2,4.35999753]
[1736919789216,0.9191,3230.8,3230.7,0.30966]
[1736919789412,0.9191,3230.8,3230.7,41.10966]
[1736919790508,4.3392682,3230.8,3230.7,41.10966]
[1736919793620,3.8785682,3230.8,3230.7,41.10966]
[1736919793818,0.4513,3230.9,3230.8,0.30965]
[1736919794015,0.4513,3230.9,3230.8,1.46184753]
[1736919798019,0.4891,3231.2,3230.8,1.15219753]
[1736919798323,0.4991,3231.3,3231.2,0.30962]
[1736919798629,3.81283587,3231.3,3231.2,1.46181753]
[1736919798925,4.26413587,3231.3,3231.2,42.26181753]
[1736919800325,4.26413587,3231.3,3231.2,45.46961753]
[1736919802127,0.4569,3231.6,3231.5,0.30959]
[1736919802429,0.4569,3231.6,3231.5,1.46178753]
[1736919803023,5.35252211,3232.1,3231.5,1.46178753]
[1736919803226,0.4569,3232.0,3231.9,0.30955]
[1736919803620,3.94036782,3232.0,3231.9,0.30955]
[1736919808734,3.94036782,3232.0,3231.7,3.2078]
[1736919808938,1.15219753,3231.8,3231.7,3.51736]
[1736919809132,1.15219753,3231.8,3231.7,3.2078]
[1736919809331,4.72512385,3231.8,3231.7,3.2078]
[1736919809539,4.72512385,3231.8,3231.7,3.51737]
[1736919810837,4.41556385,3231.8,3231.7,3.51737]
[1736919812335,4.41556385,3231.8,3231.3,3.2078]
[1736919812536,1.15219753,3231.4,3231.3,3.2078]
[1736919812832,4.45424517,3231.4,3231.3,3.51741]
[1736919813233,3.30204764,3231.4,3231.3,3.51741]
[1736919813632,3.27032673,3231.5,3231.4,0.3096]
[1736919813833,2.11129753,3231.6,3231.3,3.2078]
[1736919814028,2.11129753,3231.6,3231.5,0.30959]
[1736919814439,5.39382425,3231.6,3231.5,0.30959]
[1736919826354,0.3096,3231.4,3231.3,3.2078]
[1736919826557,5.39382425,3231.6,3231.2,40.8]
[1736919826855,3.47241851,3231.4,3231.3,0.30961]
[1736919827054,3.47241851,3231.5,3231.4,0.3096]
[1736919827254,3.47241851,3231.5,3231.3,0.4644]
[1736919827255,1.4469,3231.6,3231.3,0.4644]
[1736919827460,1.4469,3231.6,3231.5,0.30959]
[1736919827754,4.98152599,3231.6,3231.5,0.30959]
[1736919828161,4.98152599,3231.6,3231.5,41.10959]
[1736919831558,5.29110599,3231.6,3231.5,40.8]
[1736919835260,5.29110599,3231.6,3231.5,41.10959]
[1736919836162,5.29110599,3231.6,3231.5,40.8]
[1736919836661,5.29110599,3231.6,3231.5,41.10959]
[1736919838067,4.98152599,3231.6,3231.5,41.10959]
[1736919844170,4.02772599,3231.6,3231.5,42.26178753]
[1736919844368,3.53462599,3231.6,3231.5,42.26178753]
[1736919844765,3.2078,3231.9,3231.8,0.30956]
[1736919845165,6.74142554,3231.9,3231.8,0.30956]
[1736919845367,7.20682554,3231.9,3231.8,0.30956]
[1736919848676,6.74142554,3231.9,3231.8,0.30956]
[1736919848878,3.53362554,3231.9,3231.8,0.30956]
[1736919849079,3.6665,3232.3,3231.8,0.30956]
[1736919849378,3.6665,3232.3,3232.2,0.30952]
[1736919849977,3.6665,3232.3,3232.2,0.78752]
[1736919851175,3.6665,3232.3,3232.2,41.58752]
[1736919851873,0.4587,3232.3,3232.2,41.58752]
[1736919855277,3.2078,3232.6,3232.5,0.30949]
[1736919855582,3.2078,3232.6,3232.5,1.46168753]
[1736919858880,1.15219753,3232.8,3232.5,1.15219753]
[1736919859083,1.15219753,3232.8,3232.7,0.30947]
[1736919859476,4.63130029,3232.8,3232.7,0.30947]
[1736919860276,3.47910276,3232.8,3232.7,0.30947]
[1736919861876,3.2078,3233.5,3232.8,0.30946]
[1736919862076,1.4557,3233.4,3233.3,1.46161753]
[1736919862282,4.92377156,3233.4,3233.3,1.46161753]
[1736919862484,4.92377156,3233.4,3233.3,42.26161753]
[1736919862681,4.92377156,3233.4,3233.3,41.10942]
[1736919865083,3.2078,3233.9,3233.8,0.30937]
[1736919865475,6.75642548,3233.9,3233.8,0.30937]
[1736919866386,7.21712548,3233.9,3233.8,0.30937]
[1736919871592,4.00932548,3233.9,3233.8,0.30937]
[1736919882786,4.00932548,3233.9,3233.8,41.10937]
[1736919883190,0.4607,3233.9,3233.8,41.10937]
[1736919888901,0.4901,3234.2,3234.1,0.30934]
[1736919889398,0.4901,3234.2,3234.1,1.45774509]
[1736919890403,0.4901,3234.2,3234.1,0.30934]
[1736919890607,0.4551,3234.3,3234.2,0.30933]
[1736919890802,0.4551,3234.3,3234.2,1.45773509]
[1736919891010,0.4551,3234.3,3234.2,42.25773509]
[1736919891408,0.4551,3234.3,3234.2,41.10933]
[1736919895304,1.4499,3234.8,3234.7,0.30928]
[1736919895604,4.66674326,3234.8,3234.7,0.30928]
[1736919896506,1.4499,3234.8,3234.7,0.30928]
[1736919903211,1.4499,3234.8,3234.5,3.2078]
[1736919903212,4.863888,3234.8,3234.5,3.2078]
[1736919903413,8.071688,3234.8,3234.7,0.30928]
[1736919904414,8.071688,3234.8,3234.2,40.8]
[1736919904613,8.380968,3234.8,3234.6,0.30929]
[1736919905315,0.30931,3234.5,3234.3,0.30932]
[1736919905720,3.58165221,3234.4,3234.3,0.30932]
[1736919905911,6.48014221,3234.4,3234.2,40.8]
[1736919906110,1.21662,3234.3,3234.2,41.10932]
[1736919906306,4.48896221,3234.3,3234.2,41.10932]
[1736919906616,4.66694221,3234.3,3234.2,41.10932]
[1736919912216,1.3946,3234.3,3234.2,41.10932]
[1736919913014,3.2078,3234.8,3234.7,0.30928]
[1736919913417,6.46689803,3234.8,3234.7,0.30928]
[1736919915717,6.46689803,3234.8,3234.2,44.0078]
[1736919915917,6.46689803,3234.8,3234.4,0.3093]
[1736919916123,6.46689803,3234.8,3234.2,44.0078]
[1736919916124,0.30932,3234.4,3234.2,41.10933]
[1736919916421,1.73602,3234.3,3234.2,41.10933]
[1736919916723,4.76851151,3234.3,3234.2,41.10933]
[1736919920619,5.07783151,3234.3,3234.2,40.8]
[1736919921623,5.07783151,3234.3,3234.2,41.10933]
[1736919921921,4.76851151,3234.3,3234.2,41.10933]
[1736919922124,5.07783151,3234.3,3234.2,41.10933]
[1736919922422,4.76851151,3234.3,3234.2,41.10933]
[1736919924930,4.77136495,3234.3,3234.2,41.10933]
[1736919926826,5.08068495,3234.3,3234.2,41.10933]
[1736919927227,4.77136495,3234.3,3234.2,41.10933]
[1736919930029,3.34466495,3234.3,3234.2,41.10933]
[1736919930232,0.00285344,3234.3,3234.2,41.10933]
[1736919930427,0.00285344,3234.3,3234.2,41.56943]
[1736919930934,0.00285344,3234.3,3234.2,42.03243]
[1736919944139,0.00285344,3234.3,3234.2,45.24023]
[1736919950445,0.493,3235.0,3234.2,44.9309]
[1736919950647,0.493,3235.0,3234.9,0.30926]
[1736919951044,0.493,3235.0,3234.9,41.10926]
[1736919955354,0.493,3235.0,3234.9,42.25696288]
[1736919962354,0.493,3235.0,3234.9,43.40466576]
[1736919962554,3.2078,3235.8,3234.9,43.09540576]
[1736919962860,3.7324047,3235.7,3235.4,1.14770288]
[1736919963065,3.7324047,3235.7,3235.5,0.3092]
[1736919963361,3.7324047,3235.7,3235.5,41.1092]
[1736919963751,3.7324047,3235.7,3235.6,0.3092]
[1736919964359,3.7324047,3235.7,3235.6,41.1092]